[Event "*** Titled Tuesday Blitz"]
[Site "Chess.com"]
[Date "2020.12.01"]
[Round "2"]
[White "kkpanu9"]
[Black "Andro2"]
[Result "0-1"]
[WhiteElo "2114"]
[BlackElo "2389"]
[TimeControl "180+1"]
[EndTime "10:17:28 PST"]
[Termination "Andro2 won by checkmate"]

1. e4 {[%clk 0:03:00.2]} 1... c5 {[%clk 0:02:58.4]} 2. Nf3 {[%clk 0:03:00.2]}
2... d6 {[%clk 0:02:57.6]} 3. d4 {[%clk 0:03:00.4]} 3... cxd4 {[%clk 0:02:56.5]}
4. Nxd4 {[%clk 0:03:01.3]} 4... Nf6 {[%clk 0:02:56.7]} 5. Nc3 {[%clk 0:03:00.2]}
5... a6 {[%clk 0:02:56.9]} 6. h3 {[%clk 0:03:00.4]} 6... e6 {[%clk 0:02:56]} 7.
g4 {[%clk 0:02:59.9]} 7... Nfd7 {[%clk 0:02:55.2]} 8. Bg2 {[%clk 0:02:33.7]}
8... Be7 {[%clk 0:02:44.9]} 9. g5 {[%clk 0:02:27.2]} 9... Nc6 {[%clk 0:02:41.7]}
10. h4 {[%clk 0:01:39.3]} 10... Qc7 {[%clk 0:02:15.5]} 11. Be3 {[%clk
0:01:37.6]} 11... Nde5 {[%clk 0:02:04.8]} 12. Qe2 {[%clk 0:00:44.7]} 12... O-O
{[%clk 0:01:52.1]} 13. O-O-O {[%clk 0:00:34.6]} 13... b5 {[%clk 0:01:49.9]} 14.
f4 {[%clk 0:00:27.6]} 14... Nc4 {[%clk 0:01:38.2]} 15. Nxc6 {[%clk 0:00:27.5]}
15... Qxc6 {[%clk 0:01:36.6]} 16. f5 {[%clk 0:00:28.1]} 16... Nxe3 {[%clk
0:01:25.4]} 17. Qxe3 {[%clk 0:00:26.4]} 17... b4 {[%clk 0:01:21.3]} 18. Ne2
{[%clk 0:00:20.6]} 18... exf5 {[%clk 0:01:02.6]} 19. Nd4 {[%clk 0:00:18.9]}
19... Qc5 {[%clk 0:01:01.6]} 20. exf5 {[%clk 0:00:15.4]} 20... Ra7 {[%clk
0:00:53.1]} 21. Qg3 {[%clk 0:00:11.2]} 21... Rc7 {[%clk 0:00:42.2]} 22. f6
{[%clk 0:00:10.2]} 22... Bd8 {[%clk 0:00:35.2]} 23. Rd2 {[%clk 0:00:08.8]} 23...
Re8 {[%clk 0:00:28.3]} 24. h5 {[%clk 0:00:07.4]} 24... Qe5 {[%clk 0:00:20.1]}
25. Qh4 {[%clk 0:00:05.2]} 25... h6 {[%clk 0:00:16.3]} 26. gxh6 {[%clk
0:00:05.1]} 26... Qxf6 {[%clk 0:00:16.4]} 27. Qxf6 {[%clk 0:00:04.9]} 27... Bxf6
{[%clk 0:00:16.6]} 28. hxg7 {[%clk 0:00:04.5]} 28... Bg5 {[%clk 0:00:16.8]} 29.
Rg1 {[%clk 0:00:02.9]} 29... Bxd2+ {[%clk 0:00:15.3]} 30. Kxd2 {[%clk
0:00:03.8]} 30... Bb7 {[%clk 0:00:15.3]} 31. h6 {[%clk 0:00:03.3]} 31... Bxg2
{[%clk 0:00:14.1]} 32. Rxg2 {[%clk 0:00:04.2]} 32... Kh7 {[%clk 0:00:14.6]} 33.
Nf5 {[%clk 0:00:04.7]} 33... Rc5 {[%clk 0:00:14.4]} 34. Nxd6 {[%clk 0:00:04.9]}
34... Rd5+ {[%clk 0:00:15]} 35. Kc1 {[%clk 0:00:04.8]} 35... Rxd6 {[%clk
0:00:15.1]} 36. Rf2 {[%clk 0:00:04.8]} 36... Re1# {[%clk 0:00:14.4]} 0-1

[Event "*** Titled Tuesday Blitz"]
[Site "Chess.com"]
[Date "2020.12.01"]
[Round "2"]
[White "DrVelja"]
[Black "maxip32"]
[Result "1-0"]
[WhiteElo "2789"]
[BlackElo "2501"]
[TimeControl "180+1"]
[EndTime "10:17:29 PST"]
[Termination "DrVelja won by checkmate"]

1. e4 {[%clk 0:03:00.4]} 1... e5 {[%clk 0:02:59.7]} 2. Nf3 {[%clk 0:02:59.2]}
2... Nf6 {[%clk 0:03:00.3]} 3. d4 {[%clk 0:02:58.5]} 3... Nxe4 {[%clk
0:02:58.9]} 4. dxe5 {[%clk 0:02:58.8]} 4... d5 {[%clk 0:02:59.1]} 5. Nbd2 {[%clk
0:02:59.3]} 5... Nxd2 {[%clk 0:02:49.6]} 6. Qxd2 {[%clk 0:02:58.9]} 6... Be7
{[%clk 0:02:48.6]} 7. Bd3 {[%clk 0:02:58.1]} 7... Nc6 {[%clk 0:02:47.6]} 8. Qf4
{[%clk 0:02:51.1]} 8... Be6 {[%clk 0:02:44.9]} 9. Qg3 {[%clk 0:02:47.2]} 9...
Kf8 {[%clk 0:01:37.7]} 10. h4 {[%clk 0:02:41.4]} 10... Nb4 {[%clk 0:01:36.4]}
11. Bg5 {[%clk 0:02:32.3]} 11... Nxd3+ {[%clk 0:01:33.6]} 12. cxd3 {[%clk
0:02:33.2]} 12... h6 {[%clk 0:01:31.5]} 13. Bxe7+ {[%clk 0:02:30.8]} 13... Qxe7
{[%clk 0:01:32.4]} 14. O-O {[%clk 0:02:31.6]} 14... Qb4 {[%clk 0:01:30.7]} 15.
Rac1 {[%clk 0:02:29.9]} 15... c6 {[%clk 0:01:30.3]} 16. Rc2 {[%clk 0:02:20.1]}
16... Qg4 {[%clk 0:01:29.3]} 17. Qxg4 {[%clk 0:02:13.4]} 17... Bxg4 {[%clk
0:01:30.2]} 18. Nd4 {[%clk 0:02:14.3]} 18... Ke7 {[%clk 0:01:22.5]} 19. f3
{[%clk 0:02:12.7]} 19... Bd7 {[%clk 0:01:20.3]} 20. h5 {[%clk 0:02:13.1]} 20...
Rac8 {[%clk 0:01:17.5]} 21. b4 {[%clk 0:02:12.6]} 21... Ra8 {[%clk 0:01:11.1]}
22. f4 {[%clk 0:01:47.2]} 22... Bg4 {[%clk 0:01:10.6]} 23. b5 {[%clk 0:01:39.8]}
23... Rhc8 {[%clk 0:00:55]} 24. bxc6 {[%clk 0:01:35.8]} 24... bxc6 {[%clk
0:00:55.9]} 25. Rfc1 {[%clk 0:01:08.9]} 25... Bxh5 {[%clk 0:00:46.4]} 26. Rxc6
{[%clk 0:00:54.8]} 26... Bg4 {[%clk 0:00:36.8]} 27. f5 {[%clk 0:00:46.4]} 27...
Rxc6 {[%clk 0:00:30.6]} 28. Rxc6 {[%clk 0:00:47.3]} 28... Rb8 {[%clk 0:00:15.2]}
29. Rc7+ {[%clk 0:00:47.2]} 29... Kf8 {[%clk 0:00:14.9]} 30. e6 {[%clk
0:00:47.4]} 30... fxe6 {[%clk 0:00:12.6]} 31. Nxe6+ {[%clk 0:00:47.2]} 31... Ke8
{[%clk 0:00:12.9]} 32. Nxg7+ {[%clk 0:00:47.1]} 32... Kf8 {[%clk 0:00:13.4]} 33.
Ne6+ {[%clk 0:00:45.8]} 33... Ke8 {[%clk 0:00:13.9]} 34. Kh2 {[%clk 0:00:28.5]}
34... h5 {[%clk 0:00:13.7]} 35. Kg3 {[%clk 0:00:28.5]} 35... Rb2 {[%clk
0:00:10.9]} 36. Kf4 {[%clk 0:00:27.3]} 36... Rxg2 {[%clk 0:00:10.7]} 37. Ke5
{[%clk 0:00:26.4]} 37... Rf2 {[%clk 0:00:08.9]} 38. Kd6 {[%clk 0:00:26.4]} 38...
Bxf5 {[%clk 0:00:08]} 39. Re7# {[%clk 0:00:27.3]} 1-0

[Event "*** Titled Tuesday Blitz"]
[Site "Chess.com"]
[Date "2020.12.01"]
[Round "2"]
[White "theturtlemoves"]
[Black "Vandros57"]
[Result "1/2-1/2"]
[WhiteElo "2387"]
[BlackElo "2152"]
[TimeControl "180+1"]
[EndTime "10:17:29 PST"]
[Termination "Game drawn by repetition"]

1. e4 {[%clk 0:03:00.5]} 1... c5 {[%clk 0:02:58.2]} 2. Nf3 {[%clk 0:02:54.6]}
2... Nc6 {[%clk 0:02:57.4]} 3. Bb5 {[%clk 0:02:52]} 3... g6 {[%clk 0:02:51.8]}
4. O-O {[%clk 0:02:50.8]} 4... Bg7 {[%clk 0:02:50.5]} 5. Re1 {[%clk 0:02:50.7]}
5... e5 {[%clk 0:02:43.9]} 6. Bxc6 {[%clk 0:02:49.7]} 6... dxc6 {[%clk
0:02:42.5]} 7. a4 {[%clk 0:02:49.5]} 7... a5 {[%clk 0:02:40.2]} 8. Na3 {[%clk
0:02:49.3]} 8... Ne7 {[%clk 0:02:36]} 9. Nc4 {[%clk 0:02:46.5]} 9... Qc7 {[%clk
0:02:30.4]} 10. d3 {[%clk 0:02:30.5]} 10... O-O {[%clk 0:02:27.2]} 11. Be3
{[%clk 0:02:29.6]} 11... b6 {[%clk 0:02:25.2]} 12. c3 {[%clk 0:02:24.9]} 12...
Be6 {[%clk 0:02:21.8]} 13. Ng5 {[%clk 0:02:20.4]} 13... Bxc4 {[%clk 0:02:19]}
14. dxc4 {[%clk 0:02:21.3]} 14... Rad8 {[%clk 0:02:14.5]} 15. Qg4 {[%clk
0:02:05.4]} 15... h6 {[%clk 0:02:10.5]} 16. Nh3 {[%clk 0:01:43.3]} 16... f5
{[%clk 0:02:00.1]} 17. exf5 {[%clk 0:01:43.6]} 17... gxf5 {[%clk 0:01:59.2]} 18.
Qh5 {[%clk 0:01:18]} 18... f4 {[%clk 0:01:55.3]} 19. Bc1 {[%clk 0:01:17.3]}
19... Qd7 {[%clk 0:01:47.5]} 20. Qf3 {[%clk 0:01:05.9]} 20... Qf5 {[%clk
0:01:43.5]} 21. Kf1 {[%clk 0:00:58.4]} 21... Rd3 {[%clk 0:01:41.6]} 22. Qe4
{[%clk 0:00:57]} 22... Qxe4 {[%clk 0:01:34.5]} 23. Rxe4 {[%clk 0:00:57.9]} 23...
Rd1+ {[%clk 0:01:28.9]} 24. Re1 {[%clk 0:00:57.4]} 24... Rfd8 {[%clk 0:01:26.9]}
25. f3 {[%clk 0:00:52.2]} 25... Nf5 {[%clk 0:01:23.2]} 26. Nf2 {[%clk
0:00:50.3]} 26... Rxe1+ {[%clk 0:01:16.7]} 27. Kxe1 {[%clk 0:00:51.2]} 27... Kf7
{[%clk 0:01:08.6]} 28. Ne4 {[%clk 0:00:50.8]} 28... Ke6 {[%clk 0:01:06.5]} 29.
Bd2 {[%clk 0:00:49.1]} 29... Nd6 {[%clk 0:01:04.9]} 30. b3 {[%clk 0:00:35.1]}
30... Nxe4 {[%clk 0:01:03]} 31. fxe4 {[%clk 0:00:36]} 31... Bf6 {[%clk 0:01:01]}
32. Ke2 {[%clk 0:00:33]} 32... Bh4 {[%clk 0:00:59.8]} 33. Rd1 {[%clk 0:00:30.2]}
33... Rg8 {[%clk 0:00:51.3]} 34. Kf3 {[%clk 0:00:29.7]} 34... Rd8 {[%clk
0:00:47.3]} 35. Ke2 {[%clk 0:00:28.5]} 35... Rg8 {[%clk 0:00:43.6]} 36. Rg1
{[%clk 0:00:28]} 36... h5 {[%clk 0:00:41.6]} 37. Bc1 {[%clk 0:00:21.2]} 37...
Rg7 {[%clk 0:00:38.9]} 38. Kf3 {[%clk 0:00:19]} 38... Rd7 {[%clk 0:00:37.5]} 39.
Ke2 {[%clk 0:00:10.1]} 39... Rg7 {[%clk 0:00:36.9]} 40. Bd2 {[%clk 0:00:09.8]}
40... Rg8 {[%clk 0:00:35.6]} 41. Bc1 {[%clk 0:00:07.7]} 41... Rg7 {[%clk
0:00:33.7]} 1/2-1/2

[Event "*** Titled Tuesday Blitz"]
[Site "Chess.com"]
[Date "2020.12.01"]
[Round "2"]
[White "Twitch_ElhamBlitz05"]
[Black "BlixLT"]
[Result "0-1"]
[WhiteElo "2771"]
[BlackElo "2342"]
[TimeControl "180+1"]
[EndTime "10:17:30 PST"]
[Termination "BlixLT won by checkmate"]

1. e4 {[%clk 0:03:00.2]} 1... Nc6 {[%clk 0:02:58.6]} 2. d4 {[%clk 0:03:00.1]}
2... d5 {[%clk 0:02:58.1]} 3. exd5 {[%clk 0:03:01]} 3... Qxd5 {[%clk 0:02:57.7]}
4. Nf3 {[%clk 0:03:01.7]} 4... Bg4 {[%clk 0:02:56.9]} 5. Be2 {[%clk 0:03:02.5]}
5... Nf6 {[%clk 0:02:50.9]} 6. O-O {[%clk 0:03:02.7]} 6... O-O-O {[%clk
0:02:49.9]} 7. Nc3 {[%clk 0:03:00.6]} 7... Qh5 {[%clk 0:02:49.3]} 8. h3 {[%clk
0:03:01.3]} 8... e6 {[%clk 0:02:44.6]} 9. Be3 {[%clk 0:02:47.4]} 9... Bd6 {[%clk
0:02:39.6]} 10. Nd2 {[%clk 0:02:25]} 10... Bxe2 {[%clk 0:02:23.5]} 11. Qxe2
{[%clk 0:02:25.9]} 11... Qxe2 {[%clk 0:02:14.7]} 12. Nxe2 {[%clk 0:02:26.8]}
12... e5 {[%clk 0:02:14.9]} 13. Nf3 {[%clk 0:02:12.9]} 13... Rhe8 {[%clk
0:02:05.3]} 14. Bg5 {[%clk 0:02:06.9]} 14... exd4 {[%clk 0:01:39.9]} 15. Nexd4
{[%clk 0:02:07.8]} 15... Nxd4 {[%clk 0:01:37.1]} 16. Nxd4 {[%clk 0:02:08.7]}
16... Be5 {[%clk 0:01:36.8]} 17. Nf3 {[%clk 0:01:50.2]} 17... Bxb2 {[%clk
0:01:35.7]} 18. Rab1 {[%clk 0:01:50.5]} 18... Ba3 {[%clk 0:01:29]} 19. Rb3
{[%clk 0:01:48.8]} 19... Bc5 {[%clk 0:01:22.5]} 20. Rfb1 {[%clk 0:01:47]} 20...
b6 {[%clk 0:01:22.5]} 21. a4 {[%clk 0:01:45.1]} 21... a5 {[%clk 0:01:20.3]} 22.
Kf1 {[%clk 0:01:32.9]} 22... Rd6 {[%clk 0:01:15.6]} 23. Bf4 {[%clk 0:01:25.7]}
23... Rde6 {[%clk 0:01:12.7]} 24. Rd3 {[%clk 0:01:07.1]} 24... Re2 {[%clk
0:01:07.8]} 25. Nd4 {[%clk 0:01:05.7]} 25... Bxd4 {[%clk 0:00:52.3]} 26. Rxd4
{[%clk 0:01:06.6]} 26... Rxc2 {[%clk 0:00:52.1]} 27. Rbd1 {[%clk 0:01:00.6]}
27... h6 {[%clk 0:00:44.4]} 28. g4 {[%clk 0:00:58.2]} 28... Re4 {[%clk
0:00:36.4]} 29. Rd8+ {[%clk 0:00:57.3]} 29... Kb7 {[%clk 0:00:36.8]} 30. Bg3
{[%clk 0:00:57.1]} 30... Rxa4 {[%clk 0:00:36.7]} 31. Rf8 {[%clk 0:00:57.1]}
31... Ne4 {[%clk 0:00:35.5]} 32. Bh2 {[%clk 0:00:30.4]} 32... Rxf2+ {[%clk
0:00:29.3]} 33. Kg1 {[%clk 0:00:30.7]} 33... Raa2 {[%clk 0:00:27.8]} 34. Be5
{[%clk 0:00:22.8]} 34... f6 {[%clk 0:00:20.5]} 35. Bd4 {[%clk 0:00:01.7]} 35...
Rg2+ {[%clk 0:00:20]} 36. Kf1 {[%clk 0:00:02]} 36... Ng3+ {[%clk 0:00:20.1]} 37.
Ke1 {[%clk 0:00:02.4]} 37... Rge2# {[%clk 0:00:20.2]} 0-1

[Event "*** Titled Tuesday Blitz"]
[Site "Chess.com"]
[Date "2020.12.01"]
[Round "2"]
[White "CheckThis4"]
[Black "Parhamov"]
[Result "0-1"]
[WhiteElo "2558"]
[BlackElo "2915"]
[TimeControl "180+1"]
[EndTime "10:17:31 PST"]
[Termination "Parhamov won on time"]

1. d4 {[%clk 0:03:00.1]} 1... Nf6 {[%clk 0:02:58.6]} 2. Bg5 {[%clk 0:02:58.7]}
2... d5 {[%clk 0:02:56.7]} 3. e3 {[%clk 0:02:58.4]} 3... c5 {[%clk 0:02:55.9]}
4. Bxf6 {[%clk 0:02:56.5]} 4... gxf6 {[%clk 0:02:55.3]} 5. dxc5 {[%clk
0:02:56.1]} 5... e6 {[%clk 0:02:54.4]} 6. c4 {[%clk 0:02:54.9]} 6... dxc4 {[%clk
0:02:53.1]} 7. Nd2 {[%clk 0:02:53.4]} 7... Bxc5 {[%clk 0:02:52.3]} 8. Bxc4
{[%clk 0:02:53]} 8... Nc6 {[%clk 0:02:49.6]} 9. Qh5 {[%clk 0:02:40]} 9... Bb4
{[%clk 0:02:37.6]} 10. Nf3 {[%clk 0:02:34.7]} 10... Ne5 {[%clk 0:02:36.4]} 11.
O-O-O {[%clk 0:02:02.6]} 11... Qc7 {[%clk 0:02:27]} 12. Nxe5 {[%clk 0:01:49]}
12... Qxe5 {[%clk 0:02:18.9]} 13. Qxe5 {[%clk 0:01:44.2]} 13... fxe5 {[%clk
0:02:19.1]} 14. Ne4 {[%clk 0:01:39.2]} 14... f5 {[%clk 0:02:13.2]} 15. Ng5
{[%clk 0:01:20.8]} 15... Ke7 {[%clk 0:02:09]} 16. Kb1 {[%clk 0:01:20.8]} 16...
e4 {[%clk 0:02:00.4]} 17. f3 {[%clk 0:01:18.6]} 17... Rg8 {[%clk 0:01:52.7]} 18.
h4 {[%clk 0:01:17.3]} 18... h6 {[%clk 0:01:47.9]} 19. Nh3 {[%clk 0:01:17]} 19...
Bd6 {[%clk 0:01:35.6]} 20. fxe4 {[%clk 0:01:13.8]} 20... fxe4 {[%clk 0:01:35]}
21. Rd2 {[%clk 0:00:59.2]} 21... Rg3 {[%clk 0:01:04.1]} 22. Rhd1 {[%clk
0:00:45.7]} 22... Be5 {[%clk 0:01:00.7]} 23. Nf4 {[%clk 0:00:41.2]} 23... Rb8
{[%clk 0:00:48.1]} 24. Bb3 {[%clk 0:00:32]} 24... b5 {[%clk 0:00:45.9]} 25. a3
{[%clk 0:00:23.9]} 25... a5 {[%clk 0:00:45.2]} 26. Bc2 {[%clk 0:00:20.6]} 26...
b4 {[%clk 0:00:38.1]} 27. Bxe4 {[%clk 0:00:17.5]} 27... bxa3 {[%clk 0:00:38]}
28. Ng6+ {[%clk 0:00:17.6]} 28... Rxg6 {[%clk 0:00:35.9]} 29. Bxg6 {[%clk
0:00:17.3]} 29... Ba6 {[%clk 0:00:20.5]} 30. Rd7+ {[%clk 0:00:09.6]} 30... Kf6
{[%clk 0:00:20.4]} 31. Bd3 {[%clk 0:00:07.1]} 31... Rxb2+ {[%clk 0:00:19.4]} 32.
Kc1 {[%clk 0:00:07]} 32... Bxd3 {[%clk 0:00:19.7]} 33. R1xd3 {[%clk 0:00:01.4]}
33... a2 {[%clk 0:00:19.3]} 34. Ra3 {[%clk 0:00:01.5]} 34... Rxg2 {[%clk
0:00:19.4]} 0-1

[Event "*** Titled Tuesday Blitz"]
[Site "Chess.com"]
[Date "2020.12.01"]
[Round "2"]
[White "Eloist"]
[Black "ShahMatKanal"]
[Result "1-0"]
[WhiteElo "2311"]
[BlackElo "2505"]
[TimeControl "180+1"]
[EndTime "10:17:32 PST"]
[Termination "Eloist won on time"]

1. e4 {[%clk 0:03:00.7]} 1... c5 {[%clk 0:02:59.4]} 2. Nf3 {[%clk 0:02:59.9]}
2... Nc6 {[%clk 0:02:59.8]} 3. Bb5 {[%clk 0:02:59]} 3... g6 {[%clk 0:02:59.6]}
4. Bxc6 {[%clk 0:02:58.8]} 4... dxc6 {[%clk 0:03:00.5]} 5. d3 {[%clk 0:02:58.3]}
5... Bg7 {[%clk 0:03:00.6]} 6. O-O {[%clk 0:02:58.2]} 6... e5 {[%clk 0:03:00.9]}
7. a4 {[%clk 0:02:53.5]} 7... a5 {[%clk 0:03:00.4]} 8. Na3 {[%clk 0:02:52.8]}
8... f6 {[%clk 0:02:46]} 9. Be3 {[%clk 0:02:50.4]} 9... b6 {[%clk 0:02:45.1]}
10. Nc4 {[%clk 0:02:49]} 10... Be6 {[%clk 0:02:37.2]} 11. Nfd2 {[%clk
0:02:47.1]} 11... Ne7 {[%clk 0:02:25.4]} 12. b4 {[%clk 0:02:46.5]} 12... axb4
{[%clk 0:02:11.2]} 13. a5 {[%clk 0:02:45.8]} 13... bxa5 {[%clk 0:02:11.3]} 14.
Bxc5 {[%clk 0:02:45.1]} 14... O-O {[%clk 0:02:11.7]} 15. Bb6 {[%clk 0:02:39.3]}
15... Qd7 {[%clk 0:01:58.9]} 16. Bxa5 {[%clk 0:02:33.1]} 16... Rab8 {[%clk
0:01:57.2]} 17. Bb6 {[%clk 0:02:16.9]} 17... Rfc8 {[%clk 0:01:37.6]} 18. Qe2
{[%clk 0:02:01.2]} 18... Bh6 {[%clk 0:01:23.9]} 19. Ba7 {[%clk 0:01:57.5]} 19...
Rb7 {[%clk 0:01:19.4]} 20. Nb6 {[%clk 0:01:55.3]} 20... Rxb6 {[%clk 0:00:47]}
21. Bxb6 {[%clk 0:01:54.8]} 21... c5 {[%clk 0:00:47.9]} 22. Ra7 {[%clk
0:01:51.2]} 22... Qd6 {[%clk 0:00:41.8]} 23. Rfa1 {[%clk 0:00:58.9]} 23... Nc6
{[%clk 0:00:38.2]} 24. Ra8 {[%clk 0:00:52.8]} 24... Nd4 {[%clk 0:00:31.4]} 25.
Rxc8+ {[%clk 0:00:40.7]} 25... Bxc8 {[%clk 0:00:32.3]} 26. Qd1 {[%clk
0:00:27.3]} 26... Qxb6 {[%clk 0:00:32.1]} 27. Nc4 {[%clk 0:00:25.5]} 27... Qb8
{[%clk 0:00:24.2]} 28. Ra5 {[%clk 0:00:20]} 28... Ne6 {[%clk 0:00:20.9]} 29. Qa1
{[%clk 0:00:19]} 29... Bb7 {[%clk 0:00:21]} 30. Rb5 {[%clk 0:00:18]} 30... Nd8
{[%clk 0:00:02.5]} 31. Qa5 {[%clk 0:00:15.8]} 31... Bf8 {[%clk 0:00:01.8]} 32.
Qb6 {[%clk 0:00:14.8]} 32... Qc8 {[%clk 0:00:01.9]} 33. Na5 {[%clk 0:00:14.4]}
33... Ba6 {[%clk 0:00:01]} 34. Qb8 {[%clk 0:00:13.6]} 1-0

[Event "*** Titled Tuesday Blitz"]
[Site "Chess.com"]
[Date "2020.12.01"]
[Round "2"]
[White "klimkoj"]
[Black "elamier"]
[Result "1-0"]
[WhiteElo "2637"]
[BlackElo "2308"]
[TimeControl "180+1"]
[EndTime "10:17:33 PST"]
[Termination "klimkoj won on time"]

1. d4 {[%clk 0:03:00.7]} 1... Nf6 {[%clk 0:02:58.9]} 2. c4 {[%clk 0:03:01]} 2...
g6 {[%clk 0:02:58.9]} 3. Nc3 {[%clk 0:03:01.2]} 3... d5 {[%clk 0:02:59.1]} 4.
cxd5 {[%clk 0:02:59.6]} 4... Nxd5 {[%clk 0:02:59.2]} 5. e4 {[%clk 0:02:59.5]}
5... Nxc3 {[%clk 0:02:59.3]} 6. bxc3 {[%clk 0:03:00.4]} 6... Bg7 {[%clk
0:02:59.7]} 7. Bc4 {[%clk 0:02:59.5]} 7... c5 {[%clk 0:02:58.9]} 8. Be3 {[%clk
0:02:59.9]} 8... O-O {[%clk 0:02:58.7]} 9. Ne2 {[%clk 0:02:59]} 9... Nc6 {[%clk
0:02:58.2]} 10. O-O {[%clk 0:02:57.9]} 10... Qc7 {[%clk 0:02:57.5]} 11. Rc1
{[%clk 0:02:56.1]} 11... Rd8 {[%clk 0:02:57.1]} 12. Qc2 {[%clk 0:02:42.3]} 12...
Na5 {[%clk 0:02:46.1]} 13. Qa4 {[%clk 0:02:33.2]} 13... Nxc4 {[%clk 0:02:33.4]}
14. Qxc4 {[%clk 0:02:32.8]} 14... Bd7 {[%clk 0:02:05]} 15. Rfd1 {[%clk
0:02:26.7]} 15... Rac8 {[%clk 0:01:49.2]} 16. a3 {[%clk 0:02:21.7]} 16... Qa5
{[%clk 0:01:39.4]} 17. dxc5 {[%clk 0:02:02.9]} 17... Bb5 {[%clk 0:01:31.1]} 18.
Qa2 {[%clk 0:02:03.3]} 18... Bxe2 {[%clk 0:01:25.2]} 19. Qxe2 {[%clk 0:02:04.2]}
19... Rxd1+ {[%clk 0:01:23.2]} 20. Qxd1 {[%clk 0:01:59.7]} 20... Qxa3 {[%clk
0:01:22.6]} 21. Rb1 {[%clk 0:01:58.2]} 21... Qa6 {[%clk 0:00:39.1]} 22. Qd7
{[%clk 0:01:53.1]} 22... Qc6 {[%clk 0:00:35.6]} 23. Rxb7 {[%clk 0:01:45.9]}
23... Qxd7 {[%clk 0:00:32.7]} 24. Rxd7 {[%clk 0:01:46.8]} 24... a5 {[%clk
0:00:30.1]} 25. c6 {[%clk 0:01:41.9]} 25... Bxc3 {[%clk 0:00:28.7]} 26. c7
{[%clk 0:01:41.9]} 26... Kg7 {[%clk 0:00:26.8]} 27. Bb6 {[%clk 0:01:39.1]} 27...
Be5 {[%clk 0:00:23.5]} 28. Bxa5 {[%clk 0:01:36.2]} 28... Ra8 {[%clk 0:00:20.9]}
29. g3 {[%clk 0:01:32.5]} 29... Rc8 {[%clk 0:00:13.5]} 30. Rd8 {[%clk
0:01:31.5]} 30... Rxc7 {[%clk 0:00:13.1]} 31. Bxc7 {[%clk 0:01:30.9]} 31... Bxc7
{[%clk 0:00:14]} 32. Rd7 {[%clk 0:01:30.5]} 32... Bd6 {[%clk 0:00:13.7]} 33. f4
{[%clk 0:01:30.7]} 33... Bc5+ {[%clk 0:00:13.2]} 34. Kg2 {[%clk 0:01:30.3]}
34... h5 {[%clk 0:00:13.8]} 35. Kf3 {[%clk 0:01:30.1]} 35... Kf6 {[%clk
0:00:13.7]} 36. Rb7 {[%clk 0:01:27.1]} 36... e6 {[%clk 0:00:11.6]} 37. h3 {[%clk
0:01:27.1]} 37... Ba3 {[%clk 0:00:11.2]} 38. e5+ {[%clk 0:01:21.3]} 38... Kg7
{[%clk 0:00:11.3]} 39. Ke4 {[%clk 0:01:21.1]} 39... Bc5 {[%clk 0:00:10.5]} 40.
Rb2 {[%clk 0:01:17.1]} 40... Ba7 {[%clk 0:00:08.4]} 41. Kd3 {[%clk 0:01:16.6]}
41... Bc5 {[%clk 0:00:07.7]} 42. h4 {[%clk 0:01:08.5]} 42... Ba7 {[%clk
0:00:06.8]} 43. Kc4 {[%clk 0:01:08.3]} 43... Bg1 {[%clk 0:00:06.3]} 44. Kb5
{[%clk 0:01:07.9]} 44... Be3 {[%clk 0:00:05.9]} 45. Rc2 {[%clk 0:01:07.1]} 45...
Kf8 {[%clk 0:00:05]} 46. Kc6 {[%clk 0:01:07.2]} 46... Ke7 {[%clk 0:00:05.1]} 47.
Rb2 {[%clk 0:01:07.5]} 47... Bg1 {[%clk 0:00:03.6]} 48. Rb7+ {[%clk 0:01:07]}
48... Kf8 {[%clk 0:00:02.9]} 49. Kd7 {[%clk 0:01:07.9]} 49... Bf2 {[%clk
0:00:02.6]} 50. Rb3 {[%clk 0:01:07]} 50... Be1 {[%clk 0:00:02.6]} 51. Rf3 {[%clk
0:01:03.6]} 1-0

[Event "*** Titled Tuesday Blitz"]
[Site "Chess.com"]
[Date "2020.12.01"]
[Round "2"]
[White "Teidi96"]
[Black "Sokoloco"]
[Result "0-1"]
[WhiteElo "2272"]
[BlackElo "2462"]
[TimeControl "180+1"]
[EndTime "10:17:33 PST"]
[Termination "Sokoloco won on time"]

1. e4 {[%clk 0:03:00.7]} 1... g6 {[%clk 0:02:55.7]} 2. d4 {[%clk 0:03:00.3]}
2... Bg7 {[%clk 0:02:56.1]} 3. Nc3 {[%clk 0:03:01.2]} 3... d6 {[%clk 0:02:55.6]}
4. Be3 {[%clk 0:03:01.7]} 4... a6 {[%clk 0:02:52.9]} 5. a4 {[%clk 0:03:01.6]}
5... b6 {[%clk 0:02:51.8]} 6. Qd2 {[%clk 0:03:01.9]} 6... Bb7 {[%clk 0:02:51.8]}
7. f3 {[%clk 0:03:02.5]} 7... Nd7 {[%clk 0:02:51.6]} 8. h4 {[%clk 0:03:03.1]}
8... h5 {[%clk 0:02:50.6]} 9. Nh3 {[%clk 0:03:02.3]} 9... c5 {[%clk 0:02:50.5]}
10. Be2 {[%clk 0:02:58.6]} 10... cxd4 {[%clk 0:02:42.1]} 11. Bxd4 {[%clk
0:02:59.5]} 11... Ngf6 {[%clk 0:02:42.5]} 12. Ng5 {[%clk 0:02:54.5]} 12... Rc8
{[%clk 0:02:27.2]} 13. Nd5 {[%clk 0:02:40.2]} 13... O-O {[%clk 0:02:18.3]} 14.
g4 {[%clk 0:02:30.9]} 14... hxg4 {[%clk 0:02:12]} 15. h5 {[%clk 0:02:31.1]}
15... Bxd5 {[%clk 0:01:56.3]} 16. exd5 {[%clk 0:02:29.1]} 16... gxf3 {[%clk
0:01:19.1]} 17. Bd3 {[%clk 0:02:19.3]} 17... Nxh5 {[%clk 0:01:05]} 18. Rxh5
{[%clk 0:02:18.3]} 18... Bxd4 {[%clk 0:00:53.7]} 19. Ne6 {[%clk 0:01:06.2]}
19... fxe6 {[%clk 0:00:24.7]} 20. Qh6 {[%clk 0:01:05.7]} 20... f2+ {[%clk
0:00:11.6]} 21. Kf1 {[%clk 0:01:04.3]} 21... Rf7 {[%clk 0:00:09.8]} 22. Bxg6
{[%clk 0:00:58.3]} 22... Bg7 {[%clk 0:00:03.8]} 23. Qh7+ {[%clk 0:00:45.1]}
23... Kf8 {[%clk 0:00:04]} 24. dxe6 {[%clk 0:00:11.8]} 24... Rf6 {[%clk
0:00:04.4]} 25. Bf7 {[%clk 0:00:04.9]} 25... Rxf7 {[%clk 0:00:04.6]} 26. exf7
{[%clk 0:00:03.5]} 26... Kxf7 {[%clk 0:00:05.5]} 27. Rf5+ {[%clk 0:00:02.6]}
27... Nf6 {[%clk 0:00:06.1]} 28. Qh5+ {[%clk 0:00:01.9]} 28... Kf8 {[%clk
0:00:05.9]} 29. Qg6 {[%clk 0:00:01.3]} 29... Qc7 {[%clk 0:00:06.1]} 30. Kxf2
{[%clk 0:00:01.2]} 30... Qxc2+ {[%clk 0:00:05.8]} 0-1